[Event "Early-Titled-Tuesday-Blitz-May-14-2024"]
[Site "Chess.com"]
[Date "2024.05.14"]
[Round "7"]
[White "zozik"]
[Black "Aleksandar-Topalov"]
[Result "1/2-1/2"]
[WhiteElo "2333"]
[BlackElo "2468"]
[TimeControl "180+1"]
[EndTime "9:19:48 PDT"]
[Termination "Game drawn by repetition"]

1. d4 {[%clk 0:02:56.8]} 1... e6 {[%clk 0:02:59.1]} 2. Nf3 {[%clk 0:02:56.5]}
2... Nf6 {[%clk 0:02:58.1]} 3. g3 {[%clk 0:02:57.1]} 3... b6 {[%clk 0:02:56.5]}
4. Bg2 {[%clk 0:02:57.7]} 4... Bb7 {[%clk 0:02:56.8]} 5. O-O {[%clk 0:02:58.4]}
5... Be7 {[%clk 0:02:57.1]} 6. c4 {[%clk 0:02:58.6]} 6... c5 {[%clk 0:02:55.8]}
7. d5 {[%clk 0:02:58]} 7... exd5 {[%clk 0:02:55]} 8. Nh4 {[%clk 0:02:56.2]} 8...
O-O {[%clk 0:02:53.5]} 9. Nf5 {[%clk 0:02:53.1]} 9... Re8 {[%clk 0:02:50.8]} 10.
Nxe7+ {[%clk 0:02:48.5]} 10... Qxe7 {[%clk 0:02:49.9]} 11. cxd5 {[%clk
0:02:48.2]} 11... Qxe2 {[%clk 0:02:47.1]} 12. Nc3 {[%clk 0:02:47.1]} 12... Qxd1
{[%clk 0:02:46.6]} 13. Rxd1 {[%clk 0:02:48]} 13... a6 {[%clk 0:02:40.9]} 14. Bg5
{[%clk 0:02:46.9]} 14... d6 {[%clk 0:02:35.5]} 15. Bf4 {[%clk 0:02:43.2]} 15...
Rd8 {[%clk 0:02:30.4]} 16. Re1 {[%clk 0:02:43.2]} 16... Kf8 {[%clk 0:02:29.4]}
17. Re2 {[%clk 0:02:24]} 17... Ne8 {[%clk 0:02:28]} 18. Rae1 {[%clk 0:02:21.6]}
18... Nd7 {[%clk 0:02:26.6]} 19. Ne4 {[%clk 0:02:16.3]} 19... Bxd5 {[%clk
0:02:19.5]} 20. Nxd6 {[%clk 0:02:08]} 20... Bxg2 {[%clk 0:02:18.8]} 21. Kxg2
{[%clk 0:02:06.7]} 21... Ndf6 {[%clk 0:02:06.2]} 22. Nxe8 {[%clk 0:02:02.6]}
22... Rxe8 {[%clk 0:02:06]} 23. Bc7 {[%clk 0:01:55.1]} 23... Rxe2 {[%clk
0:01:57.5]} 24. Rxe2 {[%clk 0:01:56]} 24... Nd5 {[%clk 0:01:57.4]} 25. Bd6+
{[%clk 0:01:54.3]} 25... Kg8 {[%clk 0:01:57.1]} 26. Re5 {[%clk 0:01:54.9]} 26...
Nb4 {[%clk 0:01:51.9]} 27. Bc7 {[%clk 0:01:43.9]} 27... b5 {[%clk 0:01:45.4]}
28. Rxc5 {[%clk 0:01:37.9]} 28... Nxa2 {[%clk 0:01:44.9]} 29. Ba5 {[%clk
0:01:37.9]} 29... h6 {[%clk 0:01:36.9]} 30. Rc2 {[%clk 0:01:35.8]} 30... b4
{[%clk 0:01:21.8]} 31. Rc4 {[%clk 0:01:34.5]} 31... Rb8 {[%clk 0:01:19.1]} 32.
Rc6 {[%clk 0:01:35]} 32... b3 {[%clk 0:01:09.4]} 33. Rxa6 {[%clk 0:01:34.9]}
33... f6 {[%clk 0:01:05.2]} 34. Ra7 {[%clk 0:01:30.6]} 34... Nc1 {[%clk
0:01:04]} 35. h4 {[%clk 0:01:25.7]} 35... Nd3 {[%clk 0:00:58.7]} 36. Bc3 {[%clk
0:01:25.5]} 36... Nc5 {[%clk 0:00:58.5]} 37. h5 {[%clk 0:01:15.2]} 37... Ne4
{[%clk 0:00:57.2]} 38. Bd4 {[%clk 0:01:13.6]} 38... Rb4 {[%clk 0:00:56.8]} 39.
Rd7 {[%clk 0:01:07.4]} 39... Rc4 {[%clk 0:00:53.1]} 40. Rd5 {[%clk 0:00:38.2]}
40... Kf7 {[%clk 0:00:46.6]} 41. Kf3 {[%clk 0:00:32.4]} 41... Ng5+ {[%clk
0:00:36.6]} 42. Ke3 {[%clk 0:00:28.2]} 42... Ne6 {[%clk 0:00:32.1]} 43. Bc3
{[%clk 0:00:25.8]} 43... Nc5 {[%clk 0:00:24.8]} 44. Bd4 {[%clk 0:00:23.9]} 44...
Ne6 {[%clk 0:00:19.4]} 45. Bc3 {[%clk 0:00:22.5]} 45... Nc5 {[%clk 0:00:19.3]}
46. Bd4 {[%clk 0:00:22.5]} 46... Ne6 {[%clk 0:00:15.9]} 1/2-1/2

[Event "Early-Titled-Tuesday-Blitz-May-14-2024"]
[Site "Chess.com"]
[Date "2024.05.14"]
[Round "7"]
[White "ulises2013"]
[Black "Saxar85"]
[Result "0-1"]
[WhiteElo "2904"]
[BlackElo "2795"]
[TimeControl "180+1"]
[EndTime "9:19:49 PDT"]
[Termination "Saxar85 won on time"]

1. e4 {[%clk 0:03:00.9]} 1... e5 {[%clk 0:02:47.2]} 2. g3 {[%clk 0:02:59.7]}
2... Nf6 {[%clk 0:02:45.7]} 3. Bg2 {[%clk 0:03:00.3]} 3... Bc5 {[%clk
0:02:38.4]} 4. Ne2 {[%clk 0:03:00.4]} 4... c6 {[%clk 0:02:29]} 5. O-O {[%clk
0:02:58.5]} 5... d5 {[%clk 0:02:28.3]} 6. exd5 {[%clk 0:02:59.4]} 6... cxd5
{[%clk 0:02:27.2]} 7. d4 {[%clk 0:02:59.4]} 7... exd4 {[%clk 0:02:27.1]} 8. Nxd4
{[%clk 0:03:00.3]} 8... O-O {[%clk 0:02:26.3]} 9. Nc3 {[%clk 0:02:59.8]} 9...
Bg4 {[%clk 0:02:24.4]} 10. Qd3 {[%clk 0:02:56.1]} 10... Nc6 {[%clk 0:02:23.4]}
11. Nb3 {[%clk 0:02:56]} 11... Bb6 {[%clk 0:02:16.5]} 12. Bg5 {[%clk 0:02:41.2]}
12... Ne5 {[%clk 0:02:08.5]} 13. Qd2 {[%clk 0:02:27.1]} 13... Nf3+ {[%clk
0:02:04.6]} 14. Bxf3 {[%clk 0:02:27.2]} 14... Bxf3 {[%clk 0:02:04.7]} 15. Nd4
{[%clk 0:02:27.1]} 15... Bg4 {[%clk 0:01:59.3]} 16. Rfe1 {[%clk 0:02:23.6]}
16... h6 {[%clk 0:01:56.3]} 17. Bf4 {[%clk 0:02:18.3]} 17... Re8 {[%clk
0:01:27.2]} 18. Rxe8+ {[%clk 0:02:16.3]} 18... Qxe8 {[%clk 0:01:27.1]} 19. Re1
{[%clk 0:02:15.8]} 19... Qd7 {[%clk 0:01:26.8]} 20. Be5 {[%clk 0:01:35.8]} 20...
Ne4 {[%clk 0:01:25.4]} 21. Nxe4 {[%clk 0:01:35.3]} 21... dxe4 {[%clk 0:01:25.5]}
22. Rxe4 {[%clk 0:01:35.9]} 22... Re8 {[%clk 0:01:25.5]} 23. Nb3 {[%clk
0:01:04.7]} 23... f6 {[%clk 0:01:19.1]} 24. Rxg4 {[%clk 0:00:11.3]} 24... Qxg4
{[%clk 0:01:11.5]} 25. Bd4 {[%clk 0:00:11.7]} 25... Re2 {[%clk 0:00:57.8]} 26.
Qd3 {[%clk 0:00:11.8]} 26... Re1+ {[%clk 0:00:43.3]} 27. Kg2 {[%clk 0:00:11.9]}
27... Qd1 {[%clk 0:00:41]} 28. Qxd1 {[%clk 0:00:11.2]} 28... Rxd1 {[%clk
0:00:40.8]} 29. Bc3 {[%clk 0:00:08.2]} 29... Kf7 {[%clk 0:00:37.4]} 30. a4
{[%clk 0:00:08.7]} 30... a6 {[%clk 0:00:28.1]} 31. h4 {[%clk 0:00:08.8]} 31...
h5 {[%clk 0:00:26.9]} 32. Bd2 {[%clk 0:00:07.5]} 32... Ke6 {[%clk 0:00:23.4]}
33. a5 {[%clk 0:00:05.3]} 33... Ba7 {[%clk 0:00:22.7]} 34. Bc3 {[%clk
0:00:05.8]} 34... g5 {[%clk 0:00:21.9]} 35. hxg5 {[%clk 0:00:04.1]} 35... fxg5
{[%clk 0:00:22.2]} 36. Bd2 {[%clk 0:00:05]} 36... Kf5 {[%clk 0:00:22.2]} 37. f3
{[%clk 0:00:03.1]} 37... Rb1 {[%clk 0:00:20.4]} 38. Bc3 {[%clk 0:00:03.1]} 38...
g4 {[%clk 0:00:19.3]} 39. fxg4+ {[%clk 0:00:02.9]} 39... hxg4 {[%clk 0:00:19.1]}
40. Nd2 {[%clk 0:00:02.2]} 40... Rc1 {[%clk 0:00:17.6]} 0-1

[Event "Early-Titled-Tuesday-Blitz-May-14-2024"]
[Site "Chess.com"]
[Date "2024.05.14"]
[Round "7"]
[White "rollercoaster29"]
[Black "bazar-wokzal"]
[Result "0-1"]
[WhiteElo "2451"]
[BlackElo "2613"]
[TimeControl "180+1"]
[EndTime "9:19:49 PDT"]
[Termination "bazar-wokzal won by checkmate"]

1. e4 {[%clk 0:03:00.9]} 1... Nc6 {[%clk 0:02:59.8]} 2. d4 {[%clk 0:02:59.3]}
2... d5 {[%clk 0:02:59.4]} 3. e5 {[%clk 0:02:57.5]} 3... h5 {[%clk 0:02:59]} 4.
Nf3 {[%clk 0:02:54.3]} 4... Bg4 {[%clk 0:02:57.6]} 5. Be3 {[%clk 0:02:46.9]}
5... Qd7 {[%clk 0:02:53.7]} 6. h3 {[%clk 0:02:35.1]} 6... Bxf3 {[%clk
0:02:52.2]} 7. Qxf3 {[%clk 0:02:35.9]} 7... f6 {[%clk 0:02:51.9]} 8. Bd3 {[%clk
0:02:31.5]} 8... O-O-O {[%clk 0:02:50]} 9. e6 {[%clk 0:02:27.5]} 9... Qd6 {[%clk
0:02:43.1]} 10. Nc3 {[%clk 0:02:21.2]} 10... Kb8 {[%clk 0:02:40.3]} 11. O-O
{[%clk 0:01:44.3]} 11... Qxe6 {[%clk 0:02:38.5]} 12. Rfe1 {[%clk 0:01:41.9]}
12... Qd7 {[%clk 0:02:23.6]} 13. b4 {[%clk 0:01:00.6]} 13... e5 {[%clk
0:02:11.9]} 14. Bf5 {[%clk 0:00:57.6]} 14... Qf7 {[%clk 0:02:03.8]} 15. b5
{[%clk 0:00:40.4]} 15... Nxd4 {[%clk 0:01:55.2]} 16. Bxd4 {[%clk 0:00:40.3]}
16... exd4 {[%clk 0:01:55.6]} 17. Be6 {[%clk 0:00:34.3]} 17... Qg6 {[%clk
0:01:55]} 18. Nxd5 {[%clk 0:00:33]} 18... Bd6 {[%clk 0:01:41.9]} 19. a4 {[%clk
0:00:32.4]} 19... h4 {[%clk 0:01:16.2]} 20. a5 {[%clk 0:00:29.9]} 20... Qh5
{[%clk 0:00:56.8]} 21. Bg4 {[%clk 0:00:29.4]} 21... Qg5 {[%clk 0:00:49.6]} 22.
a6 {[%clk 0:00:28.8]} 22... Nh6 {[%clk 0:00:20.6]} 23. Nb4 {[%clk 0:00:18.7]}
23... Qxb5 {[%clk 0:00:19.2]} 24. Nd3 {[%clk 0:00:11.6]} 24... Nxg4 {[%clk
0:00:12.6]} 25. Reb1 {[%clk 0:00:10.2]} 25... Qd5 {[%clk 0:00:11.9]} 26. Rxb7+
{[%clk 0:00:07.8]} 26... Kc8 {[%clk 0:00:11.9]} 27. Qxg4+ {[%clk 0:00:07.4]}
27... f5 {[%clk 0:00:12.4]} 28. Qe2 {[%clk 0:00:06.6]} 28... Rhe8 {[%clk
0:00:10.7]} 29. Qd2 {[%clk 0:00:05.6]} 29... g5 {[%clk 0:00:10.1]} 30. Rxa7
{[%clk 0:00:05.2]} 30... g4 {[%clk 0:00:10.2]} 31. Rb1 {[%clk 0:00:02.7]} 31...
gxh3 {[%clk 0:00:09.6]} 32. Rab7 {[%clk 0:00:02.8]} 32... Qxg2# {[%clk
0:00:08.3]} 0-1

[Event "Early-Titled-Tuesday-Blitz-May-14-2024"]
[Site "Chess.com"]
[Date "2024.05.14"]
[Round "7"]
[White "AryanTari"]
[Black "ketster"]
[Result "1-0"]
[WhiteElo "3040"]
[BlackElo "2650"]
[TimeControl "180+1"]
[EndTime "9:19:55 PDT"]
[Termination "AryanTari won on time"]

1. e4 {[%clk 0:03:00.9]} 1... c5 {[%clk 0:02:52.9]} 2. Nf3 {[%clk 0:03:00.9]}
2... Nf6 {[%clk 0:02:52.9]} 3. e5 {[%clk 0:02:54.6]} 3... Nd5 {[%clk 0:02:52.9]}
4. g3 {[%clk 0:02:54.8]} 4... d6 {[%clk 0:02:49.6]} 5. exd6 {[%clk 0:02:53.6]}
5... e6 {[%clk 0:02:49.6]} 6. Bg2 {[%clk 0:02:53.5]} 6... Bxd6 {[%clk
0:02:49.7]} 7. O-O {[%clk 0:02:53.7]} 7... Nc6 {[%clk 0:02:50.1]} 8. d4 {[%clk
0:02:52.5]} 8... cxd4 {[%clk 0:02:46.9]} 9. Nxd4 {[%clk 0:02:52.7]} 9... O-O
{[%clk 0:02:43.5]} 10. Nxc6 {[%clk 0:02:48.6]} 10... bxc6 {[%clk 0:02:44.4]} 11.
c4 {[%clk 0:02:49.1]} 11... Ne7 {[%clk 0:02:40.7]} 12. Nc3 {[%clk 0:02:45.7]}
12... Rb8 {[%clk 0:02:36.8]} 13. b3 {[%clk 0:02:42.8]} 13... Be5 {[%clk
0:02:29.8]} 14. Qe1 {[%clk 0:02:36.5]} 14... Bd4 {[%clk 0:02:18.4]} 15. Bf4
{[%clk 0:02:32.8]} 15... Rb6 {[%clk 0:02:13.2]} 16. Rd1 {[%clk 0:02:32.1]} 16...
c5 {[%clk 0:02:12.2]} 17. Ne4 {[%clk 0:02:28.4]} 17... Bd7 {[%clk 0:02:03.5]}
18. Bd6 {[%clk 0:02:24.4]} 18... Rxd6 {[%clk 0:01:41]} 19. Nxd6 {[%clk
0:02:24.8]} 19... Bc6 {[%clk 0:01:39.4]} 20. Nb5 {[%clk 0:02:10.7]} 20... Bxg2
{[%clk 0:01:34.8]} 21. Kxg2 {[%clk 0:02:10.4]} 21... Qa8+ {[%clk 0:01:28.4]} 22.
Kg1 {[%clk 0:02:10.2]} 22... Nc6 {[%clk 0:01:26.9]} 23. Qe4 {[%clk 0:02:09.6]}
23... e5 {[%clk 0:01:21.8]} 24. Kg2 {[%clk 0:02:05.3]} 24... f5 {[%clk
0:01:12.3]} 25. Qd5+ {[%clk 0:02:04.7]} 25... Kh8 {[%clk 0:01:12.7]} 26. Nd6
{[%clk 0:02:02.9]} 26... h6 {[%clk 0:01:00.5]} 27. f3 {[%clk 0:01:46.9]} 27...
f4 {[%clk 0:00:40.1]} 28. g4 {[%clk 0:01:40.6]} 28... Nb4 {[%clk 0:00:35.9]} 29.
Qxa8 {[%clk 0:01:26]} 29... Rxa8 {[%clk 0:00:36.8]} 30. Rd2 {[%clk 0:01:22.7]}
30... a5 {[%clk 0:00:29.3]} 31. Re2 {[%clk 0:01:16.6]} 31... Kg8 {[%clk
0:00:25.2]} 32. Nb5 {[%clk 0:00:59.9]} 32... a4 {[%clk 0:00:20.7]} 33. Rfe1
{[%clk 0:00:51.1]} 33... axb3 {[%clk 0:00:18.8]} 34. axb3 {[%clk 0:00:52]} 34...
Kh7 {[%clk 0:00:14.9]} 35. h4 {[%clk 0:00:50.6]} 35... h5 {[%clk 0:00:12.6]} 36.
gxh5 {[%clk 0:00:50.4]} 36... Ra6 {[%clk 0:00:03.5]} 37. Kh3 {[%clk 0:00:50.1]}
37... Kh6 {[%clk 0:00:03.6]} 38. Kg4 {[%clk 0:00:49.5]} 38... Kh7 {[%clk
0:00:04]} 39. Rxe5 {[%clk 0:00:38.2]} 39... Bxe5 {[%clk 0:00:03.9]} 40. Rxe5
{[%clk 0:00:39.1]} 40... Nd3 {[%clk 0:00:03.9]} 41. Re7 {[%clk 0:00:36.6]} 41...
Ra2 {[%clk 0:00:03.6]} 42. Nd6 {[%clk 0:00:32.7]} 42... Rg2+ {[%clk 0:00:03.7]}
43. Kf5 {[%clk 0:00:33.1]} 43... Rg3 {[%clk 0:00:03.8]} 44. Nf7 {[%clk
0:00:33.2]} 44... Nf2 {[%clk 0:00:02.4]} 45. Re8 {[%clk 0:00:32.9]} 45... g6+
{[%clk 0:00:01.7]} 46. hxg6+ {[%clk 0:00:33.3]} 46... Rxg6 {[%clk 0:00:01.5]}
47. Ng5+ {[%clk 0:00:33.9]} 47... Kg7 {[%clk 0:00:01.4]} 48. Re7+ {[%clk
0:00:34.4]} 48... Kf8 {[%clk 0:00:00.6]} 49. Rf7+ {[%clk 0:00:34.9]} 49... Kg8
{[%clk 0:00:00.6]} 50. Kxg6 {[%clk 0:00:35.8]} 1-0

[Event "Early-Titled-Tuesday-Blitz-May-14-2024"]
[Site "Chess.com"]
[Date "2024.05.14"]
[Round "7"]
[White "becemix"]
[Black "dontcatchmeifyoucant"]
[Result "1-0"]
[WhiteElo "2594"]
[BlackElo "2421"]
[TimeControl "180+1"]
[EndTime "9:19:57 PDT"]
[Termination "becemix won by resignation"]

1. e4 {[%clk 0:02:59.7]} 1... c6 {[%clk 0:02:57.7]} 2. c4 {[%clk 0:02:59.5]}
2... d5 {[%clk 0:02:58.4]} 3. cxd5 {[%clk 0:03:00.4]} 3... cxd5 {[%clk
0:02:59.3]} 4. exd5 {[%clk 0:03:00.6]} 4... Nf6 {[%clk 0:03:00]} 5. Qa4+ {[%clk
0:03:00.6]} 5... Nbd7 {[%clk 0:02:43.5]} 6. Nc3 {[%clk 0:03:00]} 6... g6 {[%clk
0:02:43.6]} 7. Bc4 {[%clk 0:03:00.4]} 7... Bg7 {[%clk 0:02:42]} 8. d3 {[%clk
0:03:00.9]} 8... O-O {[%clk 0:02:40.9]} 9. Nf3 {[%clk 0:03:01.2]} 9... a6 {[%clk
0:02:33.1]} 10. Qa3 {[%clk 0:03:01.5]} 10... Rb8 {[%clk 0:02:16.5]} 11. Bf4
{[%clk 0:03:01.3]} 11... Ra8 {[%clk 0:02:03.7]} 12. Rg1 {[%clk 0:03:01]} 12...
Nb6 {[%clk 0:01:54.8]} 13. Qb3 {[%clk 0:03:00.5]} 13... Bg4 {[%clk 0:01:45.9]}
14. Ne5 {[%clk 0:03:00]} 14... Rc8 {[%clk 0:01:36.8]} 15. h3 {[%clk 0:02:55.4]}
15... Bd7 {[%clk 0:01:18.9]} 16. O-O-O {[%clk 0:02:54.9]} 16... Na4 {[%clk
0:00:52.3]} 17. Nxd7 {[%clk 0:02:49.8]} 17... Nxc3 {[%clk 0:00:44.1]} 18. Nxf6+
{[%clk 0:02:48.9]} 18... Bxf6 {[%clk 0:00:44.4]} 19. bxc3 {[%clk 0:02:49.2]}
19... b5 {[%clk 0:00:45.2]} 20. Kc2 {[%clk 0:02:21.4]} 20... bxc4 {[%clk
0:00:36.1]} 21. dxc4 {[%clk 0:02:22.3]} 21... Qa5 {[%clk 0:00:35.4]} 22. a4
{[%clk 0:02:12.8]} 22... Rc5 {[%clk 0:00:29.5]} 23. Be3 {[%clk 0:02:05.5]} 23...
Rfc8 {[%clk 0:00:27.1]} 24. Bxc5 {[%clk 0:02:04.4]} 24... Qxc5 {[%clk
0:00:27.8]} 25. Rd2 {[%clk 0:02:00]} 25... Qd6 {[%clk 0:00:20.7]} 26. Rb1 {[%clk
0:01:58.4]} 26... Qe5 {[%clk 0:00:19.3]} 27. f3 {[%clk 0:01:10.5]} 27... Qf4
{[%clk 0:00:15.7]} 28. Rd3 {[%clk 0:01:07.5]} 28... Kg7 {[%clk 0:00:14.6]} 29.
Re1 {[%clk 0:01:04.3]} 29... Rxc4 {[%clk 0:00:09.7]} 30. Re2 {[%clk 0:00:51.7]}
30... Qc7 {[%clk 0:00:09.5]} 31. Re4 {[%clk 0:00:44.9]} 31... Rc5 {[%clk
0:00:10]} 32. Rb4 {[%clk 0:00:35.8]} 32... Qg3 {[%clk 0:00:10.1]} 33. Rc4 {[%clk
0:00:33.2]} 33... Qxg2+ {[%clk 0:00:10.3]} 34. Rd2 {[%clk 0:00:33.2]} 34... Qxf3
{[%clk 0:00:06.1]} 35. Rxc5 {[%clk 0:00:33]} 35... Qe4+ {[%clk 0:00:05.7]} 36.
Kc1 {[%clk 0:00:25.7]} 36... Qe1+ {[%clk 0:00:03.6]} 37. Qd1 {[%clk 0:00:25.9]}
37... Qe3 {[%clk 0:00:03.9]} 38. Rc4 {[%clk 0:00:24.8]} 38... Bxc3 {[%clk
0:00:04.2]} 39. Kc2 {[%clk 0:00:25.2]} 39... Bxd2 {[%clk 0:00:04.1]} 40. Qxd2
{[%clk 0:00:26.1]} 40... Qe5 {[%clk 0:00:04.4]} 41. Qd4 {[%clk 0:00:26.2]} 41...
Qxd4 {[%clk 0:00:04.5]} 42. Rxd4 {[%clk 0:00:27.1]} 1-0

[Event "Early-Titled-Tuesday-Blitz-May-14-2024"]
[Site "Chess.com"]
[Date "2024.05.14"]
[Round "7"]
[White "campochess"]
[Black "EvgenyBurmakin"]
[Result "0-1"]
[WhiteElo "2108"]
[BlackElo "2322"]
[TimeControl "180+1"]
[EndTime "9:19:57 PDT"]
[Termination "EvgenyBurmakin won by resignation"]

1. e4 {[%clk 0:02:55.3]} 1... c5 {[%clk 0:02:59.8]} 2. b4 {[%clk 0:02:53.9]}
2... cxb4 {[%clk 0:02:57.3]} 3. d4 {[%clk 0:02:53.9]} 3... e6 {[%clk 0:02:55.1]}
4. Nf3 {[%clk 0:02:52.8]} 4... b6 {[%clk 0:02:49.2]} 5. Bd3 {[%clk 0:02:50.9]}
5... Bb7 {[%clk 0:02:49.2]} 6. Nbd2 {[%clk 0:02:50.5]} 6... Ne7 {[%clk
0:02:42.8]} 7. O-O {[%clk 0:02:49.5]} 7... Ng6 {[%clk 0:02:42.9]} 8. Re1 {[%clk
0:02:47.5]} 8... Be7 {[%clk 0:02:42.8]} 9. a3 {[%clk 0:02:44.9]} 9... bxa3
{[%clk 0:02:37]} 10. Bxa3 {[%clk 0:02:44.1]} 10... O-O {[%clk 0:02:36.6]} 11.
Bb2 {[%clk 0:02:42.5]} 11... Nc6 {[%clk 0:02:32.5]} 12. e5 {[%clk 0:02:41]}
12... Nb4 {[%clk 0:02:14.5]} 13. Be4 {[%clk 0:02:39]} 13... Qc7 {[%clk
0:02:05.2]} 14. Bxb7 {[%clk 0:02:38.1]} 14... Qxb7 {[%clk 0:02:06]} 15. Ne4
{[%clk 0:02:34.8]} 15... Rfc8 {[%clk 0:02:03]} 16. c3 {[%clk 0:02:34.3]} 16...
Nd5 {[%clk 0:01:59.7]} 17. Nfg5 {[%clk 0:02:28]} 17... h6 {[%clk 0:01:53.8]} 18.
Nh3 {[%clk 0:02:23.3]} 18... b5 {[%clk 0:01:41.2]} 19. Qb3 {[%clk 0:02:19.4]}
19... a5 {[%clk 0:01:37.3]} 20. Nd6 {[%clk 0:02:07.1]} 20... Bxd6 {[%clk
0:01:36.7]} 21. exd6 {[%clk 0:02:07.1]} 21... a4 {[%clk 0:01:23.2]} 22. Qa3
{[%clk 0:02:00.8]} 22... Rc6 {[%clk 0:01:20.5]} 23. Rab1 {[%clk 0:01:57.3]}
23... Rac8 {[%clk 0:01:17.7]} 24. f3 {[%clk 0:01:37.8]} 24... Qa6 {[%clk
0:00:42.7]} 25. Nf2 {[%clk 0:01:35.4]} 25... Nxc3 {[%clk 0:00:39.9]} 26. Rbc1
{[%clk 0:01:26.5]} 26... Ne2+ {[%clk 0:00:20.4]} 27. Rxe2 {[%clk 0:01:26.1]}
27... Rxc1+ {[%clk 0:00:20.6]} 28. Bxc1 {[%clk 0:01:26.1]} 28... b4 {[%clk
0:00:21.1]} 29. Qb2 {[%clk 0:01:21.5]} 29... Rxc1+ {[%clk 0:00:19.3]} 30. Qxc1
{[%clk 0:01:19.7]} 30... Qxe2 {[%clk 0:00:19.8]} 31. h4 {[%clk 0:01:11.2]} 31...
Qb5 {[%clk 0:00:17.9]} 32. h5 {[%clk 0:01:06.9]} 32... Nf8 {[%clk 0:00:17.5]}
33. Ne4 {[%clk 0:01:06.8]} 33... a3 {[%clk 0:00:16.9]} 34. Nc5 {[%clk
0:00:57.5]} 34... Qc6 {[%clk 0:00:13.4]} 35. Qc4 {[%clk 0:00:53.8]} 35... Qxd6
{[%clk 0:00:11.7]} 36. Qxb4 {[%clk 0:00:53.4]} 36... a2 {[%clk 0:00:11.5]} 37.
Nb3 {[%clk 0:00:53]} 37... Qd5 {[%clk 0:00:07.8]} 38. Na1 {[%clk 0:00:44.1]}
38... Qxh5 {[%clk 0:00:05.5]} 39. Qb3 {[%clk 0:00:41.9]} 39... Qd5 {[%clk
0:00:05.5]} 40. Qxd5 {[%clk 0:00:40.3]} 40... exd5 {[%clk 0:00:06.4]} 41. Kf2
{[%clk 0:00:40.6]} 41... Ne6 {[%clk 0:00:06.6]} 42. Ke3 {[%clk 0:00:40.5]} 42...
f5 {[%clk 0:00:07.1]} 43. g3 {[%clk 0:00:40.5]} 43... g5 {[%clk 0:00:07]} 44.
Kd3 {[%clk 0:00:40.3]} 44... h5 {[%clk 0:00:07.3]} 45. Kc3 {[%clk 0:00:35.9]}
45... h4 {[%clk 0:00:07.6]} 46. gxh4 {[%clk 0:00:34.7]} 46... gxh4 {[%clk
0:00:08.5]} 0-1

[Event "Early-Titled-Tuesday-Blitz-May-14-2024"]
[Site "Chess.com"]
[Date "2024.05.14"]
[Round "7"]
[White "capatl"]
[Black "Josgar05"]
[Result "0-1"]
[WhiteElo "2596"]
[BlackElo "2441"]
[TimeControl "180+1"]
[EndTime "9:20:03 PDT"]
[Termination "Josgar05 won by resignation"]

1. c4 {[%clk 0:02:59.2]} 1... c6 {[%clk 0:02:57.3]} 2. d4 {[%clk 0:02:58.7]}
2... d5 {[%clk 0:02:57.9]} 3. e3 {[%clk 0:02:59.3]} 3... Nf6 {[%clk 0:02:57.8]}
4. Nf3 {[%clk 0:02:59.7]} 4... e6 {[%clk 0:02:56]} 5. Nc3 {[%clk 0:02:59.9]}
5... Bd6 {[%clk 0:02:55.6]} 6. Qc2 {[%clk 0:02:58.9]} 6... O-O {[%clk
0:02:55.6]} 7. b3 {[%clk 0:02:57.8]} 7... Nbd7 {[%clk 0:02:54]} 8. Bb2 {[%clk
0:02:57.6]} 8... Re8 {[%clk 0:02:53.3]} 9. Bd3 {[%clk 0:02:53.1]} 9... c5 {[%clk
0:02:30.5]} 10. cxd5 {[%clk 0:02:51.3]} 10... exd5 {[%clk 0:02:31.4]} 11. O-O
{[%clk 0:02:41.5]} 11... a6 {[%clk 0:02:24.5]} 12. dxc5 {[%clk 0:02:15.1]} 12...
Nxc5 {[%clk 0:02:25.4]} 13. Be2 {[%clk 0:02:06.3]} 13... b5 {[%clk 0:02:16.8]}
14. Rad1 {[%clk 0:02:03.7]} 14... Bb7 {[%clk 0:02:16.3]} 15. Nd4 {[%clk
0:01:47.9]} 15... Rc8 {[%clk 0:02:12.7]} 16. Qd2 {[%clk 0:01:24.9]} 16... g6
{[%clk 0:02:11]} 17. Bf3 {[%clk 0:01:21]} 17... Bb8 {[%clk 0:02:04.2]} 18. g3
{[%clk 0:01:18.3]} 18... b4 {[%clk 0:01:51.4]} 19. Nce2 {[%clk 0:01:10.4]} 19...
a5 {[%clk 0:01:48.1]} 20. Rc1 {[%clk 0:01:01.7]} 20... Nfe4 {[%clk 0:01:44.4]}
21. Qd1 {[%clk 0:00:58.1]} 21... h5 {[%clk 0:01:42.3]} 22. Nf4 {[%clk
0:00:53.5]} 22... h4 {[%clk 0:01:41.2]} 23. Bxe4 {[%clk 0:00:31.9]} 23... Nxe4
{[%clk 0:01:40.7]} 24. Qg4 {[%clk 0:00:31.9]} 24... hxg3 {[%clk 0:01:30.8]} 25.
hxg3 {[%clk 0:00:30.2]} 25... Qg5 {[%clk 0:01:26.3]} 26. Rxc8 {[%clk 0:00:20.1]}
26... Rxc8 {[%clk 0:01:16.8]} 27. Qxg5 {[%clk 0:00:20.1]} 27... Nxg5 {[%clk
0:01:17.7]} 28. Rc1 {[%clk 0:00:19.8]} 28... Rxc1+ {[%clk 0:01:12.6]} 29. Bxc1
{[%clk 0:00:20.7]} 29... Ne4 {[%clk 0:01:11.9]} 30. Bb2 {[%clk 0:00:19.1]} 30...
Be5 {[%clk 0:01:06.7]} 31. Nd3 {[%clk 0:00:19.2]} 31... Bg7 {[%clk 0:01:05.8]}
32. Kg2 {[%clk 0:00:19.3]} 32... Ba6 {[%clk 0:00:57.2]} 33. Nf4 {[%clk
0:00:17.9]} 33... Bb7 {[%clk 0:00:47.8]} 34. f3 {[%clk 0:00:17.9]} 34... Nc3
{[%clk 0:00:46.8]} 35. Bxc3 {[%clk 0:00:17.8]} 35... bxc3 {[%clk 0:00:47.7]} 36.
Nc2 {[%clk 0:00:17.7]} 36... g5 {[%clk 0:00:45.3]} 37. Nd3 {[%clk 0:00:17.5]}
37... Ba6 {[%clk 0:00:45.5]} 38. Nc5 {[%clk 0:00:15.6]} 38... Be2 {[%clk
0:00:45]} 39. Kf2 {[%clk 0:00:15.3]} 39... Bd1 {[%clk 0:00:45.3]} 40. Ne1 {[%clk
0:00:14.8]} 40... c2 {[%clk 0:00:44.3]} 41. Ned3 {[%clk 0:00:12.9]} 41... Bb2
{[%clk 0:00:39.8]} 42. Nb7 {[%clk 0:00:12.2]} 42... c1=Q {[%clk 0:00:36.2]} 43.
Nxc1 {[%clk 0:00:12.4]} 43... Bxc1 {[%clk 0:00:37.1]} 44. Nxa5 {[%clk
0:00:12.9]} 44... Ba3 {[%clk 0:00:37.3]} 45. Nb7 {[%clk 0:00:12.5]} 45... Bc2
{[%clk 0:00:37.4]} 46. Nd8 {[%clk 0:00:12.7]} 46... Bb1 {[%clk 0:00:36.7]} 47.
Nc6 {[%clk 0:00:13.6]} 47... Bxa2 {[%clk 0:00:37.2]} 48. b4 {[%clk 0:00:14]}
48... Bc4 {[%clk 0:00:36.9]} 49. b5 {[%clk 0:00:14.1]} 49... Bxb5 {[%clk
0:00:36.9]} 50. Nd4 {[%clk 0:00:15]} 50... Bd7 {[%clk 0:00:37.3]} 51. f4 {[%clk
0:00:14.7]} 51... gxf4 {[%clk 0:00:36.7]} 52. gxf4 {[%clk 0:00:15.6]} 52... Kg7
{[%clk 0:00:36.5]} 53. Nf3 {[%clk 0:00:15.7]} 53... Bb2 {[%clk 0:00:36.2]} 54.
Nd2 {[%clk 0:00:15.5]} 54... Kf6 {[%clk 0:00:35.7]} 55. Nb3 {[%clk 0:00:15.7]}
55... Ba4 {[%clk 0:00:34.7]} 56. Nc5 {[%clk 0:00:15.8]} 56... Bc2 {[%clk
0:00:32.8]} 57. Nd7+ {[%clk 0:00:16.4]} 57... Kf5 {[%clk 0:00:33]} 58. Nc5
{[%clk 0:00:16.4]} 58... d4 {[%clk 0:00:32.6]} 59. exd4 {[%clk 0:00:15.9]} 59...
Bxd4+ {[%clk 0:00:33.5]} 60. Kf3 {[%clk 0:00:16.3]} 60... Bxc5 {[%clk
0:00:33.6]} 0-1